bitfinex/quotes_SOLUSD_20230104
["timestamp","ask_amount","ask_price","bid_price","bid_amount"]
[1672826656353,30.0,13.791,13.774,2.641]
[1672826656567,23.2213,13.79,13.774,2.641]
[1672826656779,54.44,13.789,13.775,21.7811836]
[1672826656977,23.2213,13.79,13.776,5.807]
[1672826657188,23.2213,13.79,13.776,35.807]
[1672826657407,23.2213,13.79,13.777,21.7811836]
[1672826657602,23.2213,13.79,13.778,8.465]
[1672826658025,23.2213,13.79,13.778,30.2461836]
[1672826658244,54.42,13.793,13.779,20.0]
[1672826658450,264.6,13.796,13.781,30.0]
[1672826658668,264.6,13.796,13.782,147.4861]
[1672826658865,30.0,13.795,13.782,49.6081]
[1672826659071,30.0,13.795,13.782,47.4861]
[1672826659310,30.0,13.795,13.782,20.0]
[1672826659833,30.0,13.795,13.779,20.0]
[1672826660044,30.0,13.793,13.772,2.758]
[1672826660235,14.95,13.79,13.772,2.758]
[1672826660446,132.487,13.789,13.775,30.0]
[1672826660667,132.487,13.789,13.776,4.38]
[1672826661599,132.487,13.789,13.776,7.61]
[1672826661808,132.487,13.789,13.775,29.3921836]
[1672826662023,23.6688,13.789,13.777,21.7811836]
[1672826662246,23.6688,13.789,13.778,32.37]
[1672826662454,84.42,13.795,13.779,30.0]
[1672826662651,84.42,13.795,13.781,30.0]
[1672826662652,54.42,13.795,13.781,30.0]
[1672826662856,54.42,13.795,13.782,18.13]
[1672826663093,319.01,13.796,13.783,20.0]
[1672826663495,264.6,13.796,13.783,20.0]
[1672826664034,264.6,13.796,13.778,51.38726235]
[1672826664345,264.6,13.796,13.77,14.85]
[1672826664346,264.6,13.796,13.784,21.7811836]
[1672826664753,264.6,13.796,13.781,30.0]
[1672826664963,264.6,13.796,13.782,21.7811836]
[1672826665182,264.6,13.796,13.782,41.7811836]
[1672826665622,264.6,13.796,13.783,21.7811836]
[1672826665837,264.6,13.796,13.784,20.0]
[1672826666028,54.42,13.795,13.784,20.0]
[1672826666241,54.42,13.795,13.785,21.7811836]
[1672826666445,264.6,13.796,13.785,21.7811836]
[1672826666657,264.6,13.796,13.786,20.0]
[1672826666882,54.42,13.795,13.786,20.0]
[1672826667088,54.42,13.795,13.786,41.7811836]
[1672826667301,319.01,13.796,13.786,41.7811836]
[1672826667622,30.0,13.795,13.786,41.7811836]
[1672826668775,319.01,13.796,13.786,41.7811836]
[1672826669620,319.01,13.796,13.787,21.7811836]
[1672826669815,319.01,13.796,13.788,20.0]
[1672826670024,30.0,13.795,13.788,20.0]
[1672826670353,319.01,13.796,13.788,41.7811836]
[1672826670561,264.6,13.796,13.788,41.7811836]
[1672826671084,54.42,13.795,13.788,41.7811836]
[1672826673386,319.01,13.796,13.788,41.7811836]
[1672826673596,30.0,13.795,13.788,41.7811836]
[1672826674013,54.42,13.794,13.781,46.4358]
[1672826674253,30.0,13.793,13.78,112.6918]
[1672826674448,30.0,13.791,13.78,112.6918]
[1672826674649,54.44,13.79,13.777,44.8519836]
[1672826674857,30.0,13.789,13.778,20.0]
[1672826675069,54.44,13.788,13.777,227.44124028]
[1672826675273,54.44,13.788,13.779,21.7811836]
[1672826675903,54.44,13.79,13.779,21.7811836]
[1672826676119,30.0,13.789,13.779,21.7811836]
[1672826676447,54.44,13.788,13.777,127.44124028]
[1672826676644,54.44,13.788,13.777,88.94395668]
[1672826677065,54.44,13.79,13.778,51.7811836]
[1672826677394,54.42,13.795,13.779,120.16114028]
[1672826677606,167.6802,13.795,13.78,30.0]
[1672826677794,113.2602,13.795,13.781,8.712]
[1672826678022,113.2602,13.795,13.782,20.0]
[1672826678230,113.2602,13.795,13.784,30.0]
[1672826678455,113.2602,13.795,13.785,20.0]
[1672826678868,113.2602,13.795,13.786,30.0]
[1672826679065,113.2602,13.795,13.787,20.0]
[1672826679277,46.8236,13.798,13.787,130.72514028]
[1672826679511,46.8236,13.798,13.788,110.72514028]
[1672826679705,84.41,13.797,13.788,88.94395668]
[1672826679918,84.41,13.797,13.787,20.0]
[1672826680132,30.0,13.796,13.784,20.0]
[1672826680334,54.41,13.797,13.784,418.31388335]
[1672826680549,54.41,13.797,13.785,30.0]
[1672826680748,54.41,13.797,13.786,20.0]
[1672826680964,101.2236,13.798,13.786,20.0]
[1672826681173,46.8236,13.798,13.786,20.0]
[1672826681403,54.41,13.797,13.786,20.0]
[1672826681601,30.0,13.796,13.786,20.0]
[1672826681809,54.41,13.797,13.786,20.0]
[1672826683618,30.0,13.796,13.786,20.0]
[1672826684137,30.0,13.796,13.785,20.0]
[1672826684759,54.41,13.797,13.785,85.7175591]
[1672826685383,101.2236,13.798,13.785,85.7175591]
[1672826685718,101.2236,13.798,13.785,20.0]
[1672826685908,101.2236,13.798,13.786,87.4987427]
[1672826686123,101.2236,13.798,13.787,20.0]
[1672826686333,101.2236,13.798,13.787,133.31824028]
[1672826686545,101.2236,13.798,13.788,113.31824028]
[1672826686757,46.8236,13.798,13.789,20.0]
[1672826687075,46.8236,13.798,13.789,41.7811836]
[1672826687394,76.8236,13.798,13.789,41.7811836]
[1672826687611,54.41,13.797,13.789,41.7811836]
[1672826690681,84.41,13.797,13.789,41.7811836]
[1672826691628,30.0,13.796,13.789,41.7811836]
[1672826692046,84.41,13.797,13.789,41.7811836]
[1672826692359,54.41,13.797,13.789,20.0]
[1672826692557,101.2236,13.798,13.789,41.7811836]
[1672826693298,30.0,13.797,13.789,41.7811836]
[1672826694571,30.0,13.797,13.789,20.0]
[1672826694880,101.2236,13.798,13.789,20.0]
[1672826697598,30.0,13.797,13.789,20.0]
[1672826698338,30.0,13.795,13.787,20.0]
[1672826698667,54.42,13.794,13.786,20.0]
[1672826698877,30.0,13.793,13.786,20.0]
[1672826699081,30.0,13.793,13.783,20.0]
[1672826699285,54.42,13.794,13.783,20.0]
[1672826699502,54.42,13.794,13.782,20.0]
[1672826700011,54.42,13.794,13.783,21.7811836]
[1672826700215,54.41,13.796,13.784,20.0]
[1672826701088,54.41,13.796,13.783,20.0]
[1672826701801,54.41,13.796,13.783,79.22398878]
[1672826706015,84.41,13.797,13.783,79.22398878]
[1672826711177,30.0,13.795,13.777,23.3404]
[1672826711389,30.0,13.793,13.778,20.0]
[1672826711607,54.43,13.792,13.778,20.0]
[1672826711922,30.0,13.791,13.778,20.0]
[1672826712112,30.0,13.789,13.777,23.3404]
[1672826712314,54.44,13.788,13.776,23.035]
[1672826713374,54.44,13.789,13.777,30.0]
[1672826713579,54.44,13.789,13.778,20.0]
[1672826716864,24.728,13.79,13.778,20.0]
[1672826717592,24.728,13.79,13.778,71.27581206]
[1672826717911,24.728,13.79,13.779,30.0]
[1672826719065,77.193,13.792,13.78,20.0]
[1672826719279,22.763,13.792,13.78,73.62681206]
[1672826719469,22.763,13.792,13.781,81.27581206]
[1672826719678,22.763,13.792,13.783,30.0]
[1672826720113,22.763,13.792,13.784,20.0]
[1672826725041,22.763,13.792,13.784,71.27581206]
[1672826725251,22.763,13.792,13.785,30.0]
[1672826725463,22.763,13.792,13.786,20.0]
[1672826725691,23.3611,13.795,13.786,20.0]
[1672826726635,23.3611,13.795,13.785,20.0]
[1672826728732,23.3611,13.795,13.776,22.9282]
[1672826728948,14.96,13.79,13.776,22.9282]
[1672826729147,54.44,13.789,13.776,22.9282]
[1672826729362,30.0,13.788,13.776,22.9282]
[1672826729573,54.45,13.787,13.776,22.9282]
[1672826729993,54.45,13.787,13.777,20.0]
[1672826730201,54.45,13.787,13.775,55.2484]
[1672826730543,54.45,13.787,13.775,74.32941206]
[1672826732297,54.45,13.787,13.776,20.0]
[1672826732631,84.45,13.787,13.776,20.0]
[1672826732826,30.0,13.786,13.77,25.9818]
[1672826733039,84.45,13.787,13.771,51.27581206]
[1672826733242,30.0,13.786,13.771,51.27581206]
[1672826733573,30.0,13.784,13.771,51.27581206]
[1672826733892,54.46,13.783,13.771,51.27581206]
[1672826734099,54.46,13.783,13.772,20.0]
[1672826735346,54.46,13.783,13.767,30.0]
[1672826735559,54.46,13.783,13.769,20.0]
[1672826735772,54.46,13.783,13.768,1.27581206]
[1672826736304,54.46,13.783,13.769,30.0]
[1672826736724,54.46,13.783,13.769,76.83190835]
[1672826737145,54.46,13.783,13.77,20.0]
[1672826737987,54.46,13.783,13.768,22.52772041]
[1672826738208,54.46,13.783,13.769,30.0]
[1672826738417,77.1763,13.784,13.769,30.0]
[1672826739247,77.1763,13.784,13.77,20.0]
[1672826740618,77.1763,13.784,13.767,26.14032041]
[1672826740944,77.1763,13.784,13.769,30.0]
[1672826741345,77.1763,13.784,13.768,62.77314296]
[1672826741666,30.0,13.783,13.768,62.77314296]
[1672826742934,54.47,13.782,13.768,20.0]
[1672826743147,30.0,13.781,13.766,20.0]
[1672826743463,30.0,13.779,13.762,30.0]
[1672826743775,104.2244,13.778,13.763,30.0]
[1672826745769,104.2244,13.778,13.761,32.77314296]
[1672826746082,104.2244,13.778,13.762,20.0]
[1672826746927,30.0,13.777,13.762,20.0]
[1672826747137,54.49,13.776,13.762,20.0]
[1672826747453,30.0,13.774,13.762,20.0]
[1672826747767,84.5,13.774,13.762,20.0]
[1672826748193,54.5,13.774,13.76,20.0]
[1672826748599,84.5,13.774,13.759,20.0]
[1672826749350,54.5,13.774,13.759,20.0]
[1672826749979,134.7268,13.775,13.76,30.0]
[1672826750301,134.7268,13.775,13.761,20.0]
[1672826750701,134.7268,13.775,13.76,71.90647629]
[1672826751352,134.7268,13.775,13.761,3.329]
[1672826752066,134.7268,13.775,13.761,23.329]
[1672826752711,134.7268,13.775,13.762,30.0]
[1672826753028,134.7268,13.775,13.763,20.0]
[1672826754588,54.5,13.774,13.76,41.90647629]
[1672826754915,30.0,13.773,13.755,125.64242241]
[1672826755120,54.51,13.772,13.755,125.64242241]
[1672826755326,30.0,13.771,13.755,125.64242241]
[1672826755657,30.0,13.769,13.755,125.64242241]
[1672826755845,185.5855,13.768,13.755,125.64242241]
[1672826756279,30.0,13.767,13.755,125.64242241]
[1672826756486,54.53,13.766,13.755,125.64242241]
[1672826757127,54.53,13.766,13.756,20.0]
[1672826758080,54.53,13.766,13.756,147.90919863]
[1672826759212,22.8817,13.767,13.745,124.52895935]
[1672826759213,147.90919863,13.756,13.745,124.52895935]
[1672826759423,147.90919863,13.756,13.735,121.25036945]
[1672826759424,138.61065887,13.755,13.735,121.25036945]
[1672826759638,30.0,13.753,13.735,121.25036945]
[1672826759950,158.63065887,13.752,13.735,121.25036945]
[1672826760163,158.84065887,13.75,13.732,120.41044831]
[1672826760375,84.04065887,13.748,13.726,375.27753858]
[1672826760614,114.04065887,13.746,13.726,375.27753858]
[1672826760802,30.0,13.743,13.727,30.0]
[1672826761015,61.39778825,13.743,13.733,21.7811836]
[1672826761217,61.39778825,13.749,13.733,21.7811836]
[1672826761436,61.39778825,13.747,13.733,21.7811836]
[1672826761627,30.0,13.746,13.734,54.66]
[1672826761842,61.39778825,13.745,13.734,54.66]
[1672826762262,61.39778825,13.748,13.734,54.66]
[1672826762471,115.99778825,13.748,13.734,54.66]
[1672826762679,61.39778825,13.746,13.734,54.66]
[1672826763108,61.39778825,13.746,13.735,30.0]
[1672826763953,61.39778825,13.746,13.734,54.66]
[1672826764282,61.39778825,13.744,13.72,97.2738]
[1672826764503,30.0,13.742,13.727,30.0]
[1672826764689,116.02778825,13.741,13.739,102.96588603]
[1672826764901,30.0,13.74,13.739,102.96588603]
[1672826765224,146.02778825,13.74,13.739,23.32708603]
[1672826766490,91.39778825,13.74,13.739,23.32708603]
[1672826767335,146.02778825,13.74,13.739,23.32708603]
[1672826769833,146.02778825,13.74,13.739,0.00708603]
[1672826770041,30.0,13.739,13.728,20.0]
[1672826770263,30.0,13.737,13.728,20.0]
[1672826770467,61.39778825,13.736,13.728,20.0]
[1672826770690,61.39778825,13.736,13.727,20.0]
[1672826771002,61.39778825,13.737,13.727,20.0]
[1672826771428,61.39778825,13.738,13.727,20.0]
[1672826771639,61.39778825,13.738,13.727,50.0]
[1672826772372,61.39778825,13.739,13.727,50.0]
[1672826772560,61.39778825,13.739,13.728,30.0]
[1672826773088,61.39778825,13.74,13.73,30.0]
[1672826773305,48.8876,13.741,13.731,19.56]
[1672826773513,48.8876,13.741,13.733,30.0]
[1672826773724,24.2609,13.746,13.735,30.0]
[1672826773934,24.2609,13.746,13.736,48.44]
[1672826774688,24.2609,13.746,13.737,30.0]
[1672826775209,24.2609,13.746,13.738,20.0]
[1672826776037,24.2609,13.746,13.735,8.44]
[1672826776974,24.2609,13.746,13.736,21.7811836]
[1672826777185,24.2609,13.746,13.738,30.0]
[1672826777500,24.2609,13.746,13.739,21.7811836]
[1672826777711,54.56,13.759,13.739,21.7811836]
[1672826777919,71.4233,13.758,13.74,50.0]
[1672826778339,71.4233,13.758,13.742,30.0]
[1672826778547,71.4233,13.758,13.743,20.0]
[1672826778778,71.4233,13.758,13.744,30.0]
[1672826779214,71.4233,13.758,13.744,51.7811836]
[1672826779519,71.4233,13.758,13.745,21.7811836]
[1672826779725,71.4233,13.758,13.746,30.0]
[1672826780149,71.4233,13.758,13.747,41.7811836]
[1672826780668,71.4233,13.758,13.748,30.0]
[1672826781078,71.4233,13.758,13.748,51.7811836]
[1672826781406,71.4233,13.758,13.746,1.7811836]
[1672826782045,71.4233,13.758,13.746,23.5623672]
[1672826783087,71.4233,13.758,13.747,20.0]
[1672826783276,71.4233,13.758,13.746,1.7811836]
[1672826784137,71.4233,13.758,13.746,20.0]
[1672826784543,71.4233,13.758,13.743,30.0]
[1672826785166,71.4233,13.758,13.744,20.0]
[1672826785605,71.4233,13.758,13.745,30.0]
[1672826785821,71.4233,13.758,13.746,20.0]
[1672826786662,71.4233,13.758,13.743,30.80703949]
[1672826786847,71.4233,13.758,13.74,16.8211836]
[1672826787270,71.4233,13.758,13.74,65.89488975]
[1672826787494,71.4233,13.758,13.741,79.07370615]
[1672826788339,71.4233,13.758,13.743,30.0]
[1672826788532,71.4233,13.758,13.744,20.0]
[1672826789380,71.4233,13.758,13.742,30.0]
[1672826791078,71.4233,13.758,13.743,20.0]
[1672826791403,54.57,13.757,13.743,20.0]
[1672826792014,30.0,13.756,13.74,15.09]
[1672826792970,30.0,13.754,13.74,15.09]
[1672826793180,30.0,13.754,13.741,20.0]
[1672826793387,54.57,13.755,13.739,20.0]
[1672826794029,84.57,13.756,13.739,20.0]
[1672826794535,30.0,13.755,13.735,30.0]
[1672826794748,30.0,13.755,13.74,20.0]
[1672826794963,30.0,13.755,13.735,30.0]
[1672826795167,1.95487317,13.754,13.735,30.0]
[1672826796237,1.95487317,13.754,13.736,20.0]
[1672826797164,30.0,13.753,13.737,20.0]
[1672826797492,30.0,13.753,13.732,22.8162]
[1672826797493,1.95487317,13.752,13.732,22.8162]
[1672826797690,19.72590861,13.751,13.732,22.8162]
[1672826797906,1.95487317,13.75,13.73,114.2813836]
[1672826798111,1.95487317,13.75,13.732,20.0]
[1672826799279,21.3689685,13.749,13.732,20.0]
[1672826799467,1.95487317,13.748,13.73,114.2913836]
[1672826799677,21.54037915,13.746,13.732,20.0]
[1672826799903,30.0,13.747,13.726,23.4935]
[1672826799904,49.01019479,13.743,13.726,23.4935]
[1672826800112,49.01019479,13.741,13.721,30.0]
[1672826800332,1.95487317,13.74,13.726,21.7811836]
[1672826800955,49.9606535,13.739,13.726,21.7811836]
[1672826801167,49.9606535,13.737,13.726,21.7811836]
[1672826801375,1.95487317,13.736,13.726,21.7811836]
[1672826801587,1.95487317,13.736,13.727,20.0]
[1672826802019,1.95487317,13.736,13.728,21.7811836]
[1672826802210,1.95487317,13.736,13.727,55.38940592]
[1672826802411,1.95487317,13.736,13.729,35.38940592]
[1672826802626,1.95487317,13.736,13.73,20.0]
[1672826802836,1.95487317,13.736,13.73,57.71749558]
[1672826803047,1.95487317,13.736,13.731,37.71749558]
[1672826803673,1.95487317,13.736,13.732,20.0]
[1672826808940,1.95487317,13.736,13.729,50.0]
[1672826809354,1.95487317,13.736,13.73,47.0648754]
[1672826809560,1.95487317,13.736,13.731,20.0]
[1672826810617,1.95487317,13.736,13.73,20.0]
[1672826811568,1.95487317,13.736,13.73,22.828]
[1672826817451,1.95487317,13.736,13.731,30.0]
[1672826817663,1.95487317,13.736,13.732,20.0]
[1672826841118,1.95487317,13.736,13.729,64.82581258]
[1672826841119,1.95487317,13.736,13.733,20.0]
[1672826841333,1.95487317,13.736,13.73,20.0]
[1672826842259,23.6861,13.75,13.732,30.0]
[1672826842477,71.2162,13.75,13.733,27.97853878]
[1672826842689,71.2162,13.75,13.734,30.0]
[1672826843005,71.2162,13.75,13.737,19.65167908]
[1672826843219,71.2162,13.75,13.74,19.65167908]
[1672826843434,71.2162,13.75,13.743,30.0]
[1672826843646,47.5301,13.75,13.744,20.0]
[1672826843963,47.5301,13.75,13.745,19.65167908]
[1672826844174,47.5301,13.75,13.747,19.65167908]
[1672826844361,54.57,13.757,13.749,19.65167908]
[1672826844571,54.57,13.757,13.745,19.65167908]
[1672826844798,54.57,13.757,13.747,19.65167908]
[1672826845006,54.57,13.757,13.749,19.65167908]
[1672826845220,79.3052,13.757,13.748,20.0]
[1672826845431,24.7352,13.757,13.748,20.0]
[1672826845751,24.7352,13.757,13.745,30.0]
[1672826845945,24.7352,13.757,13.746,24.26898263]
[1672826847748,24.7352,13.757,13.746,20.0]
[1672826849534,24.7352,13.757,13.747,1.35340143]
[1672826849743,24.7352,13.757,13.746,20.0]
[1672826849953,24.7352,13.757,13.748,39.50741951]
[1672826850150,24.7352,13.757,13.746,20.0]
[1672826850361,84.57,13.756,13.745,20.0]
[1672826850569,107.4577,13.756,13.742,20.0]
[1672826851952,107.4577,13.756,13.738,44.48734033]
[1672826852162,30.0,13.754,13.731,110.6204]
[1672826852363,82.70031217,13.753,13.731,110.6204]
[1672826852569,30.0,13.751,13.731,110.6204]
[1672826852784,30.0,13.749,13.731,110.6204]
[1672826853004,114.08939826,13.748,13.731,110.6204]
[1672826853322,114.08939826,13.748,13.732,30.0]
[1672826855103,114.08939826,13.748,13.733,20.0]
[1672826856142,164.08939826,13.748,13.733,20.0]
[1672826856775,30.0,13.747,13.733,20.0]
[1672826856992,89.43759826,13.746,13.733,20.0]
[1672826857508,89.43759826,13.746,13.734,30.0]
[1672826857713,89.43759826,13.746,13.735,20.0]
[1672826857939,54.61,13.746,13.735,20.0]
[1672826858273,84.61,13.747,13.735,20.0]
[1672826858470,84.61,13.747,13.734,20.0]
[1672826858659,84.61,13.747,13.732,20.0]
[1672826858997,19.67622599,13.746,13.732,20.0]
[1672826859308,54.61,13.745,13.731,110.6204]
[1672826859499,68.54994536,13.744,13.72,30.0]
[1672826859712,30.0,13.742,13.726,36.90741951]
[1672826860030,104.69909375,13.741,13.726,36.90741951]
[1672826860464,78.6842,13.74,13.726,36.90741951]
[1672826860673,104.70909375,13.739,13.726,36.90741951]
[1672826861078,104.70909375,13.739,13.727,20.0]
[1672826861396,104.70909375,13.739,13.726,121.24646288]
[1672826861601,104.70909375,13.739,13.728,41.54067366]
[1672826864782,104.70909375,13.739,13.72,30.0]
[1672826864992,30.0,13.738,13.72,30.0]
[1672826865197,219.38829375,13.737,13.72,30.0]
[1672826865417,30.0,13.736,13.718,30.0]
[1672826865617,104.71909375,13.735,13.719,111.344]
[1672826865824,104.71909375,13.735,13.72,30.0]
[1672826866040,104.71909375,13.735,13.721,20.0]
[1672826866259,24.981,13.734,13.721,20.0]
[1672826866561,50.06909375,13.733,13.721,20.0]
[1672826867412,104.72909375,13.733,13.721,20.0]
[1672826867621,104.72909375,13.733,13.72,20.0]
[1672826867832,23.7739,13.732,13.721,30.0]
[1672826868156,23.7739,13.732,13.722,20.0]
[1672826868690,50.06909375,13.731,13.722,20.0]
[1672826869083,50.06909375,13.731,13.721,20.0]
[1672826869620,50.06909375,13.731,13.72,20.0]
[1672826870030,50.06909375,13.731,13.719,20.0]
[1672826872240,30.0,13.73,13.712,76.7733]
[1672826872580,50.06909375,13.728,13.715,30.0]
[1672826872772,50.06909375,13.729,13.717,30.0]
[1672826872984,50.06909375,13.729,13.718,20.0]
[1672826873306,109.36,13.73,13.719,30.0]
[1672826873515,109.36,13.73,13.72,20.0]
[1672826873730,109.36,13.73,13.721,30.0]
[1672826873941,109.36,13.73,13.722,20.0]
[1672826875511,109.36,13.73,13.722,63.2894069]
[1672826875729,109.36,13.73,13.723,30.0]
[1672826875936,109.36,13.73,13.724,20.0]
[1672826876150,24.6389,13.731,13.724,20.0]
[1672826876761,54.64,13.739,13.726,30.0]
[1672826876971,115.5615,13.743,13.726,30.0]
[1672826877195,54.63,13.742,13.727,173.5464069]
[1672826877403,115.5615,13.743,13.727,173.5464069]
[1672826877404,115.5615,13.743,13.728,30.0]
[1672826877628,115.5615,13.743,13.73,30.0]
[1672826877818,115.5615,13.743,13.731,20.0]
[1672826881384,115.5615,13.743,13.731,63.2894069]
[1672826881817,115.5615,13.743,13.732,30.0]
[1672826882011,115.5615,13.743,13.734,30.0]
[1672826882225,115.5615,13.743,13.735,20.0]
[1672826882979,47.8562,13.747,13.735,20.0]
[1672826884120,110.1382,13.75,13.736,95.52039382]
[1672826884342,110.1382,13.75,13.737,20.0]
[1672826884558,110.1382,13.75,13.738,30.0]
[1672826884777,110.1382,13.75,13.74,30.0]
[1672826885300,110.1382,13.75,13.742,30.0]
[1672826885495,110.1382,13.75,13.743,20.0]
[1672826885707,110.1382,13.75,13.744,30.0]
[1672826885917,23.9447,13.752,13.744,121.43215334]
[1672826886133,23.9447,13.752,13.745,20.0]
[1672826886343,23.9447,13.752,13.746,30.0]
[1672826886540,23.9447,13.752,13.747,20.0]
[1672826887191,23.9447,13.752,13.747,61.68540329]
[1672826887604,23.9447,13.752,13.747,20.0]
[1672826887815,23.9447,13.752,13.745,20.0]
[1672826888025,23.9447,13.752,13.743,20.0]
[1672826888346,136.1826,13.752,13.743,20.0]
[1672826890541,136.1826,13.752,13.745,30.0]
[1672826890975,136.1826,13.752,13.746,20.0]
[1672826896419,136.1826,13.752,13.743,20.0]
[1672826897596,136.1826,13.752,13.743,41.7811836]
[1672826897814,136.1826,13.752,13.744,30.0]
[1672826898120,136.1826,13.752,13.745,41.7811836]
[1672826898438,54.55,13.762,13.747,30.0]
[1672826898639,54.55,13.762,13.748,21.7247742]
[1672826898640,213.7657,13.762,13.748,21.7247742]
[1672826898845,159.2157,13.762,13.749,30.0]
[1672826899173,159.2157,13.762,13.75,20.0]
[1672826899384,159.2157,13.762,13.75,41.7811836]
[1672826899574,159.2157,13.762,13.751,21.7811836]
[1672826899779,159.2157,13.762,13.752,20.0]
[1672826900201,159.2157,13.762,13.753,21.7811836]
[1672826900654,159.2157,13.762,13.754,20.0]
[1672826900848,47.9942,13.762,13.754,20.0]
[1672826901051,47.9942,13.762,13.754,41.7811836]
[1672826901796,30.0,13.761,13.754,20.0]
[1672826902013,54.55,13.76,13.754,20.0]
[1672826902211,54.55,13.761,13.751,20.0]
[1672826902534,30.0,13.76,13.743,24.3865]
[1672826902743,30.0,13.758,13.748,21.7811836]
[1672826903061,30.0,13.756,13.748,21.7811836]
[1672826903287,54.57,13.755,13.748,21.7811836]
[1672826903476,54.57,13.755,13.743,24.3865]
[1672826903688,101.4012,13.757,13.744,21.7811836]
[1672826905144,46.8312,13.757,13.745,30.0]
[1672826905683,46.8312,13.757,13.746,21.7811836]
[1672826905881,54.56,13.758,13.747,30.0]
[1672826906094,117.3939,13.761,13.748,20.0]
[1672826906302,117.3939,13.761,13.749,30.0]
[1672826906507,117.3939,13.761,13.75,20.0]
[1672826906717,117.3939,13.761,13.75,41.7811836]
[1672826906940,117.3939,13.761,13.751,21.7811836]
[1672826907153,117.3939,13.761,13.752,20.0]
[1672826908637,117.3939,13.761,13.749,20.0]
[1672826908840,54.55,13.76,13.749,20.0]
[1672826910208,117.3939,13.761,13.75,30.0]
[1672826910435,117.3939,13.761,13.751,20.0]
[1672826912306,117.3939,13.761,13.752,21.7811836]
[1672826912628,117.3939,13.761,13.753,20.0]
[1672826913040,117.3939,13.761,13.754,21.7811836]
[1672826913577,117.3939,13.761,13.755,20.0]
[1672826913777,54.53,13.765,13.755,20.0]
[1672826913988,54.53,13.765,13.756,21.7811836]
[1672826914205,54.53,13.765,13.757,20.0]
[1672826914929,42.756,13.765,13.757,20.0]
[1672826916517,42.756,13.765,13.757,41.7811836]
[1672826916721,70.3281,13.766,13.757,41.7811836]
[1672826916920,124.8581,13.766,13.757,41.7811836]
[1672826920915,30.0,13.765,13.757,41.7811836]
[1672826921118,30.0,13.765,13.757,20.0]
[1672826921328,30.0,13.765,13.752,20.0]
[1672826921544,124.8581,13.766,13.757,25.0]
[1672826921758,124.8581,13.766,13.758,20.0]
[1672826922423,101.9128,13.766,13.758,20.0]
[1672826934488,47.3828,13.766,13.758,20.0]
[1672826934903,30.0,13.765,13.758,20.0]
[1672826935538,101.9128,13.766,13.758,20.0]
[1672826938698,47.3828,13.766,13.758,41.7811836]
[1672826939100,54.51,13.772,13.759,30.0]
[1672826939431,54.51,13.772,13.76,41.7811836]
[1672826939432,48.0561,13.772,13.76,41.7811836]
[1672826939750,48.0561,13.772,13.761,21.7811836]
[1672826940064,48.0561,13.772,13.762,20.0]
[1672826942794,48.0561,13.772,13.763,21.7811836]
[1672826943214,48.0561,13.772,13.764,59.21607357]
[1672826943623,48.0561,13.772,13.765,21.7811836]
[1672826943828,48.0561,13.772,13.766,20.0]